Cogmind - Beta 9.3 @@@ ROGUE MODE // 2019.12.31 @ 09:21:09 Player: mrbill82 Result: Destroyed by G-34 Mercenary with Small Laser Performance ------------- Evolutions (1) 500 Regions Visited (2) 400 Robots Destroyed (29) 145 Value Destroyed (847) 847 Prototype IDs (8) 160 Alien Tech Used (0) 0 Bonus (0) 0 TOTAL SCORE: 2052 Bonus ------- None Cogmind --------- Core Integrity 0/400 Matter 285/300 Energy 100/100 System Corruption 4% Temperature Cool (6) Movement Core (150) Ox2 Location -9/Materials Parts ------- > --- POWER (1) -------- (None) > --- PROPULSION (4) --- (None) > --- UTILITY (2) ------ Medium Storage Unit > --- WEAPON (2) ------- (None) > --- INVENTORY (8) ---- Ion Engine Aluminum Leg Aluminum Leg Signal Interpreter Targeting Computer Light Armor Plating Field Recycling Unit (0) Peak State ------------ > --- POWER ------------ Light Nuclear Core > --- PROPULSION ------- Aluminum Leg Aluminum Leg Aluminum Leg Aluminum Leg > --- UTILITY ---------- Medium Storage Unit Core Shielding > --- WEAPON ----------- Heavy EM Pulse Gun Light Assault Rifle > --- INVENTORY -------- Ion Engine Reinforced Ion Engine Aluminum Leg Signal Interpreter Targeting Computer Light Armor Plating Field Recycling Unit Grenade Launcher [Rating: 13] Favorites ----------- Power Ion Engine Engine Ion Engine Power Core Light Nuclear Core Propulsion Aluminum Leg Leg Aluminum Leg Utility Core Shielding Storage Medium Storage Unit Protection Core Shielding Weapon Assault Rifle Energy Gun Medium Laser Ballistic Gun Assault Rifle Launcher Grenade Launcher Build | -11 -10 -9 ------- Run | Scr Mat Mat Slots Evolved 2 | . . 2 Power . | . . . Propulsion 2 | . . 2 Utility . | . . . Weapon . | . . . Parts Attached 29 | 6 13 10 Power 6 | 1 4 1 Engine 4 | 1 2 1 Core 2 | . 2 . Reactor . | . . . Propulsion 11 | 2 4 5 Treads . | . . . Leg 11 | 2 4 5 Wheel . | . . . Hover . | . . . Flight . | . . . Utility 4 | 1 2 1 Device . | . . . Storage 2 | 1 1 . Processor . | . . . Hackware . | . . . Protection 2 | . 1 1 Artifact . | . . . Weapon 8 | 2 3 3 Energy Gun 4 | 1 1 2 Energy Cannon . | . . . Ballistic Gun 2 | 1 1 . Ballistic Cannon . | . . . Launcher 2 | . 1 1 Special Weapon . | . . . Impact Weapon . | . . . Slashing Weapon . | . . . Piercing Weapon . | . . . Special Melee Weapon . | . . . Unidentified Prototypes . | . . . Parts Lost 12 | . 3 9 Power 2 | . . 2 Propulsion 5 | . 1 4 Utility 1 | . . 1 Weapon 4 | . 2 2 Highest Loss Streak 5 | . 1 5 Average Slot Usage (%) 92 | . 94 88 Engine 6 | . 10 1 Core 5 | . 2 8 Leg 32 | . 27 38 Storage 12 | . 14 11 Protection 10 | . 11 9 Energy Gun 10 | . 11 9 Ballistic Gun 9 | . 13 4 Launcher 3 | . 2 4 Naked Turns . | . . . Heaviest Build 25 | 13 19 25 Greatest Support 40 | 20 20 40 Greatest Overweight (x) 2 | 2 1 2 Average Overweight (x) . | . . . Largest Inventory Capacity 8 | 6 8 8 Average Capacity 7 | 5 7 8 Most Carried 8 | 2 8 8 Average Carried 6 | 1 5 7 Final Capacity 8 | 6 8 8 Final Carried 8 | 2 8 7 Class Distribution -------------------- 66% | Mutant 33% | Scavenger-Mutant Dominant Class ---------------- Mutant | -10/Materials Scavenger-Mutant | -9/Materials Resources | -11 -10 -9 ----------- Run | Scr Mat Mat Matter Collected 817 | 187 416 214 Remotely . | . . . Salvage Created 949 | . 562 387 Parts 57 | . 25 32 Haulers Intercepted . | . . . Recyclers Shooed 3 | . 2 1 Parts Field Recycled . | . . . Retrieved Matter . | . . . Parts Self-Destructed . | . . . Prevented . | . . . Kills | -11 -10 -9 ------- Run | Scr Mat Mat Combat Hostiles Destroyed 23 | . 14 9 Guns 13 | . 8 5 AOE 10 | . 6 4 Classes Destroyed 7 | . 5 2 Worker 2 | . 1 1 Builder 2 | . 1 1 Recycler 2 | . 2 . Swarmer 3 | . 3 . Grunt 17 | . 11 6 Brawler 1 | . . 1 Sentry 2 | . . 2 Best Kill Streak 4 | . 4 4 Combat Bots Only 4 | . 4 3 Max Kills in Single Turn 3 | . 3 1 Gunslinging . | . . . Exploded 2 | . 2 1 Melee . | . . . Uniques/NPCs Destroyed . | . . . Combat | -11 -10 -9 -------- Run | Scr Mat Mat Damage Taken 2052 | . 732 1320 Core 543 | . 138 405 Absorbed by Shields . | . . . Core Remaining (%) 72 | 100 44 . Volleys Fired 98 | . 58 40 Largest 2 | . 2 2 Hottest 75 | . 70 75 Shots Fired 162 | . 87 75 Gun 128 | . 72 56 Cannon . | . . . Launcher 34 | . 15 19 Special . | . . . Kinetic 53 | . 37 16 Thermal 21 | . 21 . Explosive 34 | . 15 19 Electromagnetic 54 | . 14 40 Robot Hit Streak 9 | . 9 7 Robot Miss Streak 3 | . 3 2 Penetration Max . | . . . Secondary Targets 2 | . . 2 Max Gunslinging Chain 1 | . . 1 Shots Hit Robots 86 | . 49 37 Core Hits 62 | . 35 27 Critical Hits 1 | . 1 . Critical Kills . | . . . Critical Parts Destroyed 1 | . 1 . Melee Attacks . | . . . Impact . | . . . Slashing . | . . . Piercing . | . . . Sneak Attacks . | . . . Combat Hostiles . | . . . Follow-up Attacks . | . . . Damage Inflicted 2335 | . 1466 869 Guns 975 | . 591 384 Cannons . | . . . Explosions 1337 | . 875 462 Melee . | . . . Ramming 23 | . . 23 Kinetic 313 | . 253 60 Thermal 244 | . 244 . Explosive 1292 | . 830 462 Electromagnetic 463 | . 139 324 Impact . | . . . Slashing . | . . . Piercing . | . . . Highest Corruption 4 | . 2 4 Average Corruption 1 | . 1 3 Corruption Purged . | . . . Effects 5 | . 5 . Energy Discharges 1 | . 1 . Data Loss (minor) 2 | . 2 . Targeting Errors 2 | . 2 . Overload Shots . | . . . Overflow Damage 11 | . 2 9 Projectiles . | . . . Explosions 11 | . 2 9 Melee . | . . . Knockbacks . | . . . Impact . | . . . Kinetic . | . . . Secondary . | . . . Self-Inflicted Damage 150 | . 45 105 Shots 6 | . 2 4 Rammed 14 | . . 14 Targets Rammed 18 | . . 18 Kicked 4 | . . 4 Crushed . | . . . Highest Temperature 142 | . 142 139 Average Temperature 46 | . 58 34 Received Heat Transfer 939 | . 306 633 Siege Activations . | . . . Robots Corrupted . | . . . Combat Hostiles . | . . . Parts Fried 1 | . 1 . Impact Corruptions . | . . . Robots Melted . | . . . Combat Hostiles . | . . . Parts Melted 1 | . 1 . Heat Transferred 592 | . 592 . Parts Sabotaged . | . . . Parts Stolen . | . . . Parts Stripped . | . . . Power Chain Reactions 1 | . 1 . Missiles Intercepted . | . . . Alert | -11 -10 -9 ------- Run | Scr Mat Mat Peak Influence 295 | . 295 224 Average Influence 109 | . 101 131 Maximum Alert Level 1 | . 1 1 Low Security (%) 84 | 100 79 89 Level 1 15 | . 20 10 Level 2 . | . . . Level 3 . | . . . Level 4 . | . . . Level 5 . | . . . High Security . | . . . Max Security . | . . . Squads Dispatched 7 | . 3 4 Investigation 4 | . 1 3 Extermination . | . . . Reinforcement 3 | . 2 1 Assault . | . . . Garrison . | . . . Intercept . | . . . Construction Impeded 1 | . . 1 Haulers Reinforced . | . . . Stealth | -11 -10 -9 --------- Run | Scr Mat Mat Distress Signals 2 | . 1 1 Communications Jammed . | . . . Distress Signals . | . . . Times Spotted 48 | . 28 20 Peak Tracking Total 6 | . 6 5 Tactical Retreats 8 | . 4 4 Traps | -11 -10 -9 ------- Run | Scr Mat Mat Traps Triggered 2 | . 1 1 Indirectly . | . . . Trap Hack Attempts . | . . . Triggered . | . . . Disarmed . | . . . Reprogrammed . | . . . Reused . | . . . Traps Extracted . | . . . Installed . | . . . Triggered . | . . . Machines | -11 -10 -9 ---------- Run | Scr Mat Mat Machines Disabled 5 | . 2 3 Max in Single Turn 2 | . 1 2 Machines Sabotaged . | . . . Garrisons Compromised . | . . . Overloaded Fab Kills . | . . . Fab Network Shutdowns . | . . . Hacking | -11 -10 -9 --------- Run | Scr Mat Mat Machines Accessed 9 | . 7 2 Terminals 6 | . 5 1 Fabricators . | . . . Repair Stations 2 | . 1 1 Recycling Units 1 | . 1 . Scanalyzers . | . . . Garrison Access . | . . . Total Hacks 35 | . 27 8 Successful 28 | . 22 6 Failed 7 | . 5 2 Catastrophic . | . . . Database Lockouts . | . . . Manual . | . . . Terminals 25 | . 22 3 Fabricators . | . . . Repair Stations 7 | . 2 5 Recycling Units 3 | . 3 . Scanalyzers . | . . . Garrison Access . | . . . Terminal Hacks 19 | . 17 2 Record 4 | . 4 . Prototype ID Bank 5 | . 4 1 Emergency Access Points 1 | . 1 . Unreport Threat 2 | . 2 . Locate Traps 2 | . 1 1 Maintenance Status 1 | . 1 . Hauler Manifests 2 | . 2 . Zone Layout 2 | . 2 . Fabricator Hacks . | . . . Repair Station Hacks 6 | . 2 4 Scan Component 3 | . 1 2 Repair 3 | . 1 2 Recycling Unit Hacks 3 | . 3 . Report Inventory 1 | . 1 . Retrieve Components 2 | . 2 . Scanalyzer . | . . . Garrison Access Hacks . | . . . Unauthorized Hacks . | . . . Terminals . | . . . Fabricators . | . . . Repair Stations . | . . . Recycling Units . | . . . Scanalyzers . | . . . Garrison Access . | . . . Data Cores Recovered . | . . . Used . | . . . Hacking Detections 8 | . 6 2 Full Trace Events 4 | . 2 2 Feedback Events 1 | . 1 . Corruption 1 | . 1 . Feedback Blocked . | . . . Robot Schematics Acquired . | . . . Robots Built . | . . . Matter . | . . . Time . | . . . Total Robot Build Rating . | . . . Part Schematics Acquired . | . . . Parts Built . | . . . Matter . | . . . Time . | . . . Total Part Build Rating . | . . . Parts Repaired 3 | . 1 2 Time 96 | . 38 58 Parts Recycled . | . . . Recycled Matter . | . . . Retrieved Matter . | . . . Retrieved Components 10 | . 10 . Parts Scanalyzed . | . . . Part Schematics Acquired . | . . . Parts Damaged . | . . . Bothacking | -11 -10 -9 ------------ Run | Scr Mat Mat Used RIF Installer . | . . . Robots Hacked . | . . . Non-combat . | . . . Combat . | . . . Robot Hacks Applied . | . . . Relay Couplers Released . | . . . Robots Rewired . | . . . Allies Hacked . | . . . Hacks Repelled . | . . . Allies | -11 -10 -9 -------- Run | Scr Mat Mat Total Allies . | . . . Largest Group . | . . . Highest-Rated Group . | . . . Highest-Rated Ally . | . . . Total Orders . | . . . Ally Attacks . | . . . Total Damage . | . . . Kills . | . . . Allies Corrupted . | . . . Allies Melted . | . . . Intel | -11 -10 -9 ------- Run | Scr Mat Mat Robot Analysis Total . | . . . Derelict Logs Recovered . | . . . Drone Launches . | . . . Drone Recoveries . | . . . Exploration | -11 -10 -9 ------------- Run | Scr Mat Mat Turns Passed 1810 | 77 999 734 Spaces Moved 1133 | 58 660 415 Core 42 | 21 . 21 Treads . | . . . Legs 1091 | 37 660 394 Wheels . | . . . Hover . | . . . Flight . | . . . Fastest Speed 50 | 50 120 120 Average Speed 121 | 115 121 123 Slowest Speed 150 | 150 150 150 Overloaded Moves . | . . . Propulsion Burnouts . | . . . Robots Hopped . | . . . Cave-ins Triggered . | . . . Exploration Rate (%) 40 | 4 84 34 Regions Visited 2 Branch Regions . Pre-discovered Areas . | . . . Known Exits Taken . | . . . Unknown Exits Taken 2 | 1 1 . Scrap Searched . | . . . Spaces Dug 38 | . . 38 Terrain Destroyed 198 | . 86 112 Melee . | . . . Projectile . | . . . AOE 198 | . 86 112 Actions | -11 -10 -9 --------- Run | Scr Mat Mat Total 1385 | 65 768 552 Wait 85 | . 27 58 Move 1131 | 57 659 415 Hop . | . . . Pick Up 14 | 2 8 4 Fast Attach 12 | 6 3 3 Attach 8 | . 4 4 Detach 1 | . . 1 Swap 9 | . 6 3 Drop 9 | . 3 6 Fire 98 | . 58 40 Melee . | . . . Ram 5 | . . 5 Kick 13 | . . 13 Crush . | . . . Escape Stasis . | . . . Rewire . | . . . Trap . | . . . Miscellaneous . | . . . Route ------- -11/Scrapyard -10/Materials (discovered 4 exits: *Mat x3 / [*Min]) -9/Materials History --------- Turn | Location | Event 25 | -11/Scrapyard | Discovered new exit (range 15) 78 | -11/Scrapyard | Entered Materials 117 | -10/Materials | Discovered new exit (range 16) 314 | -10/Materials | Discovered new exit (range 16) 315 | -10/Materials | Build established: Mutant 709 | -10/Materials | Discovered new exit (range 16) 794 | -10/Materials | Core integrity fell below 50% 1026 | -10/Materials | Repaired Lgt. Nuclear Core 1059 | -10/Materials | Discovered new exit (range 16) 1077 | -10/Materials | Entered another Materials area 1077 | -9/Materials | Evolved 2 slots: Propulsion x2 1332 | -9/Materials | Repaired Hvy. EM Pulse Gun 1360 | -9/Materials | Repaired Core Shielding 1381 | -9/Materials | Build established: Scavenger-Mutant 1730 | -9/Materials | Lost 3 parts (2n1w) 1761 | -9/Materials | Core integrity fell below 50% 1785 | -9/Materials | Core integrity fell below 20% 1808 | -9/Materials | Lost 5 parts (1p2n1u1w) 1811 | -9/Materials | Destroyed by G-34 Mercenary with Small Laser Last Messages --------------- U-05 Engineer builds a Wall. R-06 Scavenger collects Aluminum Leg. Slammed into G-47 Trooper. Destabilizing: Short circuit. Broken Rnf. Ion Engine permanently disabled. Aluminum Leg destroyed. Slammed into G-47 Trooper. Destabilizing: Core damaged (-12). U-05 Engineer lays Concrete. Slammed into G-47 Trooper. U-05 Engineer lays Concrete. Slammed into G-47 Trooper. Destabilizing: System corrupted (+2). W-16 Scout sends out distress signal. Core Shielding destroyed. Slammed into G-47 Trooper. Broken Rnf. Ion Engine destroyed. G-47 Trooper misfires. U-05 Engineer lays Concrete. U-05 Engineer builds a Wall. Map ----- +----------------------------------------------------+ | ?????###### # " # #??????????? | | ?????# # ! ! S # #??????????? | | ?????# # = # #??????????? | | ?????# # # #??????????? | | ?????### ## #[ # #?????###### | | ??######+#### ### = # #????! # | | ??# # #?# [ ! # ###? # | | ??# # #######+##### # # + | | ??# # * != * # # | | ??# + =% ! + [[ # | | ??# # *=% # [ # | | ??# ### #####+##### % # # | | ??# #?# # """ """ # # | | ??# #?# # """ """ # # # | | ??###########?# # """ """ # ########## | | ??????????????# # # #????????? | | ???????######## # # #????????? | | ???????# # # # #????????? | | ???????# # # # +????????? | | ???????# + + # #????????? | | ???????# """ #g########### #????????? | | ???????# """ # #?????????# #????????? | | ???????# """ # #?????????? #????????? | | ???????######## #?????????? #????????? | | ??????????????# #?????????? #????????? | | ??????????????#@#?????????? #????????? | | ??????????????# #?????????? #????????? | | ??????????????# #?????????? #????????? | | ??????????????# #??######## #????????? | | ??????????????# #??# #????????? | | ??????????????#g#??# #????????? | | ??????????????# #??# #????????? | | ??????????????# #??# ###+######??????? | | ??????????????# #??# # #??????? | | ??????????##### #??# # """"" ####???? | | ??????????# #### #! """"" + #???? | | ??????????# # """"" ## #???? | | ??????????# # """"" ## #???? | | ??????????# # """"" ## #???? | | ??????????# ######## """"" ## #???? | | ??########## ##??????# ?"""" ## #???? | | ??# # #???????# ?? ## #???? | | ??#""" # #???????###??######+##### | | ??#""" + #???????????????# | | ??#""" # #???????????????# | | ??# # #??###??????????# [ | | ??#""" # #### ##?????????# **% | | ??#""" # ##????????# !*% | | ??#""" # # ##???????# =!= | | ??# # # ##??????# !!= | +----------------------------------------------------+ Best States ------------- Heat Dissipation 28 Energy Generation 14 Energy Capacity 265 Matter Stores 300 Matter Capacity 300 Sight Range 16 Terrain Scan Density 10 Core Shielding 20 Evasion (%) 40 Item Schematics ----------------- None Robot Schematics ------------------ None Fabricated ------------ Nothing Alien Tech Used ----------------- None Achievements -------------- Party Time Shopping List Challenges ------------ None Game ------ Seed SystemTeslaDoomcannon Manual? 0 Play Time 00:25:39 Cumulative 4.8 hours Start 2019.12.31 @ 08:56:51 End 2019.12.31 @ 09:21:09 Sessions 1 Manual Loads 0 Difficulty Rogue Special Mode None Game No. 11 Rogue 11 Adventurer 0 Explorer 0 Win Type - Total 0 Types 0/0/0/0/0/0/0 Lore% 12 Gallery% 7 Achievement% 7 Wizard Run 0 Options --------- ASCII 0 Keyboard 1 Movement Numpad Keybinds 0 Fullscreen 2 Font 18/X11 Map View 76x50 Tactical HUD 0 Map Filters NONE Filters NONE Steam 1 RUN: 7c73ef6f-1cdd-4be3-a01a-d985d497266b